fUST/lending_fUST_20241207
["ID","MTS","AMOUNT","RATE_DAILY","PERIOD"]
[344563234,1733550643630,-1738.05,0.00026849,2]
[344563236,1733550643639,-500.0,0.00026849,2]
[344563238,1733550643648,-500.0,0.00026849,2]
[344563240,1733550643658,-556.77,0.00026849,2]
[344563242,1733550643672,-500.0,0.00026849,2]
[344563244,1733550643682,-417.65035605,0.00026849,2]
[344563246,1733550643692,-596.13,0.00026849,2]
[344563248,1733550643701,-150.14,0.00026849,2]
[344563250,1733550643711,-560.19,0.00026849,2]
[344563252,1733550643720,-500.0,0.00026849,2]
[344563254,1733550643730,-5892.03709221,0.00026886,2]
[344563256,1733550643741,-1880.33856646,0.00027,2]
[344563258,1733550643751,-7508.31144958,0.00027,2]
[344563260,1733550643760,-350.0,0.00027,120]
[344563262,1733550643770,-741.78589365,0.00027035,2]
[344563264,1733550643780,-457.95421742,0.00027102,2]
[344563266,1733550643789,-150.14,0.00027123,2]
[344563268,1733550643799,-500.0,0.00027123,2]
[344563270,1733550643808,-500.0,0.00027123,2]
[344563272,1733550643817,-1738.05,0.00027123,2]
[344563274,1733550643828,-500.0,0.00027123,2]
[344563276,1733550643837,-500.0,0.00027123,2]
[344563278,1733550643847,-556.77,0.00027123,2]
[344563280,1733550643856,-518.10316238,0.00027123,2]
[344563282,1733550643865,-596.13,0.00027123,2]
[344563284,1733550643876,-560.19,0.00027123,2]
[344563286,1733550643885,-500.0,0.00027123,2]
[344563288,1733550643894,-201.0,0.0002713,20]
[344563290,1733550643904,-400.0,0.00027275,2]
[344563292,1733550643913,-530.64702309,0.00027354,7]
[344563294,1733550643923,-254.58010039,0.00027397,2]
[344563296,1733550643932,-500.0,0.00027397,2]
[344563298,1733550643942,-500.0,0.00027397,3]
[344563300,1733550643951,-500.0,0.00027397,2]
[344563302,1733550643961,-429.92552979,0.00027397,2]
[344563304,1733550643971,-212.02420041,0.00027397,2]
[344563306,1733550643980,-1738.05,0.00027397,2]
[344563308,1733550643990,-500.0,0.00027397,2]
[344563310,1733550643999,-500.0,0.00027397,2]
[344563312,1733550644009,-556.77,0.00027397,2]
[344563314,1733550644018,-596.13,0.00027397,2]
[344563315,1733550644027,-500.0,0.00027397,2]
[344563318,1733550644037,-560.19,0.00027397,2]
[344563319,1733550644047,-500.0,0.00027397,2]
[344563322,1733550644057,-500.0,0.00027397,2]
[344563323,1733550644067,-500.0,0.00027397,2]
[344563325,1733550644076,-500.0,0.00027397,2]
[344563327,1733550644085,-500.0,0.00027397,2]
[344563329,1733550644095,-500.0,0.00027397,2]
[344563332,1733550644105,-500.0,0.00027397,2]
[344563333,1733550644115,-500.0,0.00027397,2]
[344563336,1733550644124,-500.0,0.00027397,2]
[344563338,1733550644134,-500.0,0.00027397,2]
[344563340,1733550644144,-500.0,0.00027397,2]
[344563342,1733550644153,-500.0,0.00027397,2]
[344563344,1733550644164,-400.0,0.00027397,60]
[344563346,1733550644174,-151.0,0.00027397,7]
[344563348,1733550644183,-151.0,0.00027397,7]
[344563350,1733550644192,-151.0,0.00027397,7]
[344563351,1733550644202,-162.586421,0.00027397,7]
[344563353,1733550644212,-172.203103,0.00027397,7]
[344563355,1733550644221,-172.203103,0.00027397,7]
[344563357,1733550644231,-172.203103,0.00027397,7]
[344563360,1733550644241,-172.203103,0.00027397,7]
[344563361,1733550644250,-172.203103,0.00027397,7]
[344563364,1733550644260,-172.203103,0.00027397,7]
[344563365,1733550644269,-172.203103,0.00027397,7]
[344563368,1733550644279,-172.203103,0.00027397,7]
[344563369,1733550644289,-172.203103,0.00027397,7]
[344563372,1733550644299,-172.203103,0.00027397,7]
[344563373,1733550644308,-172.203103,0.00027397,7]
[344563375,1733550644317,-172.203103,0.00027397,7]
[344563377,1733550644327,-172.203103,0.00027397,7]
[344563380,1733550644338,-4315.74,0.000274,30]
[344563381,1733550644347,-21639.56,0.000274,2]
[344563384,1733550644357,-151.23096074,0.000275,5]
[344563386,1733550644367,-2819.19500795,0.000275,30]
[344563387,1733550644376,-3741.81801745,0.000275,2]
[344563389,1733550644385,-246.95575905,0.00027509,2]
[344563391,1733550644395,-500.0,0.00027557,5]
[344563393,1733550644404,-188.91094502,0.00027557,5]
[344563395,1733550644414,-500.0,0.00027557,5]
[344563397,1733550644423,-500.0,0.00027557,5]
[344563399,1733550644433,-500.33250536,0.000276,5]
[344563401,1733550644442,-500.65559584,0.000276,5]
[344563403,1733550644452,-741.78589365,0.00027612,2]
[344563405,1733550644462,-163.827727,0.00027641,2]
[344563407,1733550644472,-500.0,0.00027671,2]
[344563409,1733550644482,-500.0,0.00027671,2]
[344563411,1733550644491,-500.0,0.00027671,2]
[344563414,1733550644501,-1738.05,0.00027671,2]
[344563416,1733550644511,-500.0,0.00027671,2]
[344563418,1733550644520,-500.0,0.00027671,2]
[344563420,1733550644530,-556.77,0.00027671,2]
[344563421,1733550644540,-596.13,0.00027671,2]
[344563423,1733550644550,-560.19,0.00027671,2]
[344563425,1733550644559,-500.0,0.00027671,2]
[344563428,1733550644569,-500.0,0.00027671,2]
[344563430,1733550644579,-223.625323,0.00027671,2]
[344563431,1733550644588,-223.625323,0.00027671,120]
[344563434,1733550644598,-501.35276834,0.00027709,5]
[344563435,1733550644608,-500.0,0.00027764,5]
[344563437,1733550644617,-561.05302615,0.00027764,5]
[344563439,1733550644626,-160.43568385,0.00027775,2]
[344563441,1733550644636,-501.17884249,0.00027775,5]
[344563443,1733550644645,-200.60397375,0.0002778,2]
[344563445,1733550644654,-509.01772064,0.00027792,5]
[344563447,1733550644664,-583.06425165,0.00027878,2]
[344563449,1733550644675,-500.0,0.00027945,2]
[344563451,1733550644685,-500.0,0.00027945,2]
[344563453,1733550644695,-500.0,0.00027945,2]
[344563455,1733550644705,-1738.05,0.00027945,2]
[344563457,1733550644714,-500.0,0.00027945,2]
[344563459,1733550644724,-181.87700163,0.00027945,2]
[344563461,1733550644733,-556.77,0.00027945,2]
[344563463,1733550644745,-596.13,0.00027945,2]
[344563465,1733550644756,-560.19,0.00027945,2]
[344563467,1733550644765,-500.0,0.00027945,2]
[344563469,1733550644775,-500.0,0.00027945,2]
[344563471,1733550644785,-457.95421742,0.00027951,2]
[344563473,1733550644794,-15861.21142622,0.0002799,2]
[344563475,1733550644804,-637.99703661,0.00028,7]
[344563477,1733550644813,-600.0,0.00028,120]
[344563479,1733550644824,-375.0,0.00028,13]
[344563481,1733550644834,-395.13,0.00028009,2]
[344563484,1733550644844,-150.03567,0.000281,2]
[344563485,1733550644853,-1000.0,0.00028105,5]
[344563487,1733550644863,-1000.0,0.00028105,5]
[344563489,1733550644873,-557.43635865,0.00028105,5]
[344563491,1733550644883,-741.78589365,0.00028189,2]
[344563493,1733550644892,-504.0526283,0.00028219,2]
[344563495,1733550644901,-500.0,0.00028219,2]
[344563497,1733550644911,-228.04341238,0.00028219,2]
[344563499,1733550644920,-1738.05,0.00028219,2]
[344563501,1733550644930,-500.0,0.00028219,2]
[344563503,1733550644939,-556.77,0.00028219,2]
[344563505,1733550644950,-596.13,0.00028219,2]
[344563507,1733550644960,-560.19,0.00028219,2]
[344563509,1733550644969,-500.0,0.00028219,2]
[344563511,1733550644978,-500.0,0.00028219,2]
[344563513,1733550644988,-151.0,0.00028224,6]
[344563515,1733550644998,-400.0,0.00028248,2]
[344563517,1733550645007,-521.78,0.000283,2]
[344563519,1733550645016,-801.55579272,0.00028312,5]
[344563528,1733550645097,-198.44420728,0.00028312,5]
[344563530,1733550645107,-500.0,0.00028493,2]
[344563532,1733550645117,-500.0,0.00028493,2]
[344563534,1733550645126,-556.77,0.00028493,2]
[344563536,1733550645135,-596.13,0.00028493,2]
[344563538,1733550645146,-560.19,0.00028493,2]
[344563540,1733550645156,-500.0,0.00028493,2]
[344563542,1733550645166,-500.0,0.00028493,2]
[344563544,1733550645175,-500.0,0.00028666,120]
[344563546,1733550645185,-3200.0,0.00028716,2]
[344563548,1733550645194,-151.0,0.00028722,6]
[344563550,1733550645205,-741.78589365,0.00028766,2]
[344563552,1733550645214,-500.0,0.00028767,2]
[344563554,1733550645223,-500.0,0.00028767,5]
[344563556,1733550645233,-500.0,0.00028767,2]
[344563558,1733550645243,-556.77,0.00028767,2]
[344563560,1733550645253,-596.13,0.00028767,2]
[344563562,1733550645263,-560.19,0.00028767,2]
[344563564,1733550645273,-500.0,0.00028767,2]
[344563566,1733550645283,-500.0,0.00028767,2]
[344563578,1733550645386,-457.95421742,0.00028799,2]
[344563580,1733550645396,-587.0,0.00028907,2]
[344563582,1733550645406,-643.1836223,0.00028931,2]
[344563584,1733550645415,-35158.45205935,0.00029,2]
[344563739,1733550647012,-1517.062428,0.00024657,7]
[344563741,1733550647022,-151.0,0.00024657,7]
[344563744,1733550647032,-151.0,0.00024657,7]
[344563746,1733550647042,-1517.062428,0.00024657,7]
[344563748,1733550647052,-151.0,0.00024657,7]
[344563750,1733550647063,-1517.062428,0.00024657,7]
[344563752,1733550647072,-222.599318,0.00024657,7]
[344563754,1733550647082,-1517.062428,0.00024657,7]
[344563755,1733550647091,-1517.062428,0.00024657,7]
[344563757,1733550647101,-1517.062428,0.00024657,7]
[344563759,1733550647110,-1517.062428,0.00024657,7]
[344563761,1733550647120,-513.28,0.00024657,2]
[344563763,1733550647129,-1517.062428,0.00024657,7]
[344563765,1733550647139,-1517.062428,0.00024657,7]
[344563767,1733550647149,-77.38370267,0.00024657,7]
[344563769,1733550647161,-1439.67872533,0.00024657,7]
[344563771,1733550647171,-1517.062428,0.00024657,7]
[344563773,1733550647181,-1517.062428,0.00024657,7]
[344563775,1733550647191,-1517.062428,0.00024657,7]
[344563777,1733550647200,-1517.062428,0.00024657,7]
[344563779,1733550647209,-1517.062418,0.00024657,7]
[344563781,1733550647219,-172.203103,0.00027397,7]
[344563783,1733550647230,-172.203103,0.00027397,7]
[344563785,1733550647240,-172.203103,0.00027397,7]
[344563787,1733550647250,-172.203103,0.00027397,7]
[344563789,1733550647259,-172.203103,0.00027397,7]
[344563791,1733550647269,-172.203103,0.00027397,7]
[344563793,1733550647278,-172.203109,0.00027397,7]
[344563795,1733550647287,-969.60842549,0.00029,2]
[344564103,1733550893879,2004.33,0.00024,10]
[344564104,1733550911566,163.368855,0.00013973,2]
[344564105,1733551370225,59785.0,0.0002,3]
[344564106,1733551417072,151.89163046,0.0002,2]
[344564107,1733551503468,160.244279,0.00013973,2]
[344564109,1733551670922,150.0,0.00026,60]
[344564164,1733551832741,-163.368855,0.00021209,2]
[344564167,1733551832751,-3645.5893079,0.00023698,2]
[344564169,1733551832760,-300.0,0.00023861,2]
[344564171,1733551832770,-300.0,0.00023861,2]
[344564173,1733551832779,-24900.0,0.00023862,2]
[344564175,1733551832788,-177.72,0.00024647,2]
[344564177,1733551832799,-238.2790437,0.00024657,2]
[344564179,1733551832809,-560.87999135,0.00024657,2]
[344564181,1733551832819,-398.16280205,0.00024657,2]
[344564912,1733551840417,-101.83719795,0.00024657,2]
[344564915,1733551840426,-566.87926544,0.00024657,2]
[344564917,1733551840436,-452.87801247,0.00024657,2]
[344564919,1733551840446,-500.0,0.00024657,2]
[344564921,1733551840458,-500.05750082,0.00024657,2]
[344564923,1733551840468,-500.0,0.00024657,2]
[344564925,1733551840477,-500.0,0.00024657,2]
[344564927,1733551840487,-500.0,0.00024657,2]
[344564929,1733551840496,-500.0,0.00024657,2]
[344564931,1733551840506,-500.0,0.00024657,2]
[344564933,1733551840515,-500.0,0.00024657,2]
[344564935,1733551840524,-500.0,0.00024657,2]
[344564937,1733551840534,-175.62432478,0.00024657,2]
[344564939,1733551840544,-500.0,0.00024657,2]
[344564941,1733551840553,-240.31641464,0.00024657,2]
[344565416,1733552141792,163.179965,0.00013973,2]
[344565419,1733552956154,-273.83872558,0.00020672,2]
[344565427,1733553035665,-169.874075,0.00020065,2]
[344565428,1733553035676,-300.0,0.00020515,2]
[344565429,1733553035685,-172.8463566,0.00020515,2]
[344565430,1733553035697,-127.1536434,0.00020515,2]
[344565431,1733553035706,-3713.84635661,0.00020516,2]
[344565470,1733553038612,-952.25610364,0.00020516,2]
[344565473,1733553038625,-825.19982806,0.00020516,2]
[344565502,1733553040689,-4731.31700269,0.00020516,2]
[344565503,1733553040698,-429.21987282,0.00020672,2]
[344565504,1733553040708,-17638.1633698,0.00020955,2]
[344565505,1733553040717,-13778.4664562,0.00021262,2]
[344565506,1733553040727,-378.79350631,0.00021427,2]
[344565507,1733553040736,-1285.3067042,0.00021527,2]
[344565508,1733553040746,-24900.0,0.00021614,2]
[344565509,1733553040755,-163.179965,0.00021661,2]
[344565510,1733553040765,-7066.0138701,0.00021887,2]
[344565511,1733553040774,-314.2743692,0.00022092,2]
[344565512,1733553040783,-1136.67479542,0.00022092,2]
[344565513,1733553040793,-596.638332,0.00022214,2]
[344565514,1733553040803,-6874.5094614,0.00022472,2]
[344565515,1733553040813,-407.0,0.00022566,2]
[344565516,1733553040822,-1360.81277102,0.00023343,2]
[344565565,1733553043813,-378.79350625,0.0002272,2]
[344565566,1733553043823,-3375.9688544,0.00023343,2]
[344565868,1733553046822,-374.882698,0.00023343,2]
[344568642,1733553435807,162.881162,0.00013973,2]
[344568658,1733553924948,18121.135152,0.0001,2]
[344568659,1733554053058,162.881162,0.00013973,2]
[344568670,1733554232952,-162.60209791,0.00020416,2]
[344568671,1733554232962,-423.12544,0.00020544,2]
[344568672,1733554232972,-174.77246209,0.00020572,2]
[344568673,1733554233002,-20.72269894,0.00020572,2]
[344568674,1733554233011,-300.0,0.0002096,2]
[344568675,1733554233020,-41.19808709,0.0002096,2]
[344568696,1733554238814,-258.80191291,0.0002096,2]
[344568697,1733554238824,-529.40919114,0.00020961,2]
[344568698,1733554238836,-9291.02297103,0.00020961,2]
[344568699,1733554238846,-9820.43216217,0.00021139,2]
[344568700,1733554238855,-427.36572794,0.00021504,2]
[344568701,1733554238866,-9820.43216217,0.00021543,2]
[344568702,1733554238876,-169.792459,0.00021604,2]
[344568703,1733554238886,-162.881162,0.00021661,2]
[344568704,1733554238897,-999.86499078,0.00021724,2]
[344568705,1733554238907,-68.05993112,0.00021885,2]
[344568706,1733554238920,-9752.37223105,0.00021885,2]
[344568707,1733554238930,-9820.43216217,0.00022028,2]
[344568708,1733554238940,-9820.43216217,0.00022292,2]
[344568709,1733554238949,-169.792459,0.00022412,2]
[344568710,1733554238959,-152.0,0.00022553,2]
[344568711,1733554238968,-194.83,0.00022556,2]
[344568712,1733554238978,-24900.0,0.00022566,2]
[344568713,1733554238987,-557.44213585,0.00022635,2]
[344568714,1733554238997,-9820.43216217,0.00022684,2]
[344568715,1733554239007,-427.36572789,0.00022788,2]
[344568716,1733554239017,-9820.43216217,0.0002293,2]
[344568717,1733554239026,-169.792459,0.00023219,2]
[344568718,1733554239036,-507.35318419,0.00023244,2]
[344568719,1733554239045,-9820.43216217,0.00023244,2]
[344568720,1733554239054,-194.83,0.0002385,2]
[344568721,1733554239063,-427.36572789,0.00024072,2]
[344568722,1733554239073,-557.44213585,0.00024226,2]
[344568723,1733554239083,-500.0,0.00024656,2]
[344568724,1733554239093,-500.0,0.00024656,2]
[344568725,1733554239103,-505.46811957,0.00024656,2]
[344568726,1733554239113,-500.0,0.00024656,2]
[344568727,1733554239123,-500.0,0.00024656,2]
[344568728,1733554239133,-500.0,0.00024656,2]
[344568729,1733554239142,-343.84492996,0.00024656,2]
[344568730,1733554239154,-500.0,0.00024656,2]
[344568731,1733554239163,-500.0,0.00024656,2]
[344568732,1733554239173,-500.0,0.00024656,2]
[344568733,1733554239186,-500.0,0.00024656,2]
[344568734,1733554239196,-500.0,0.00024656,2]
[344568735,1733554239206,-190.76182375,0.00024656,2]
[344568736,1733554239215,-225.81054548,0.00024656,2]
[344568737,1733554239225,-500.0,0.00024656,2]
[344568738,1733554239235,-500.0,0.00024656,2]
[344568739,1733554239244,-500.0,0.00024656,2]
[344568740,1733554239253,-500.0,0.00024656,2]
[344568741,1733554239264,-500.0,0.00024656,2]
[344568742,1733554239274,-500.0,0.00024656,2]
[344568743,1733554239283,-500.0,0.00024656,2]
[344568744,1733554239292,-500.0,0.00024656,2]
[344568745,1733554239302,-500.0,0.00024656,2]
[344568746,1733554239312,-500.0,0.00024656,2]
[344568747,1733554239322,-500.0,0.00024656,2]
[344568748,1733554239332,-500.0,0.00024656,2]
[344568749,1733554239342,-500.0,0.00024656,2]
[344568750,1733554239351,-500.0,0.00024656,2]
[344568751,1733554239362,-500.0,0.00024656,2]
[344568752,1733554239372,-500.0,0.00024656,2]
[344568753,1733554239382,-500.0,0.00024656,2]
[344568754,1733554239391,-500.0,0.00024656,2]
[344568755,1733554239401,-500.0,0.00024656,2]
[344568756,1733554239411,-500.0,0.00024656,2]
[344568757,1733554239421,-500.0,0.00024656,2]
[344568758,1733554239431,-500.0,0.00024656,2]
[344568759,1733554239441,-500.0,0.00024656,2]
[344568760,1733554239451,-500.0,0.00024656,2]
[344568761,1733554239461,-500.0,0.00024656,2]
[344568762,1733554239471,-500.0,0.00024656,2]
[344568763,1733554239481,-500.0,0.00024656,2]
[344568764,1733554239490,-500.0,0.00024656,2]
[344568765,1733554239499,-500.0,0.00024656,2]
[344568766,1733554239509,-603.12589289,0.00024657,2]
[344568767,1733554239519,-549.89407379,0.00024657,2]
[344568768,1733554239529,-505.85410524,0.00024657,2]
[344568769,1733554239539,-505.27703962,0.00024657,2]
[344568770,1733554239548,-500.0,0.00024657,2]
[344568771,1733554239558,-190.79308017,0.00024657,2]
[344568772,1733554239568,-509.74662535,0.00024657,2]
[344568773,1733554239578,-501.80399585,0.00024657,2]
[344568774,1733554239587,-391.94760495,0.00024657,2]
[344568775,1733554239597,-172.84661209,0.00024657,2]
[344568776,1733554239606,-500.0,0.00024657,2]
[344568777,1733554239616,-500.0,0.00024657,2]
[344568778,1733554239625,-504.57,0.00024657,2]
[344568779,1733554239634,-500.0,0.00024657,2]
[344568780,1733554239644,-535.4600821,0.00024657,2]
[344568781,1733554239658,-500.0,0.00024657,2]
[344568782,1733554239670,-500.0,0.00024657,2]
[344568783,1733554239682,-500.0,0.00024657,2]
[344568784,1733554239695,-399.28953677,0.00024657,2]
[344568785,1733554239707,-230.56,0.00024657,2]
[344568786,1733554239718,-506.33154955,0.00024657,2]
[344568787,1733554239729,-501.43447816,0.00024657,2]
[344568788,1733554239739,-597.74085471,0.00024657,2]
[344568789,1733554239752,-500.0,0.00024657,2]
[344568790,1733554239763,-511.79696776,0.00024657,2]
[344568791,1733554239775,-503.70578293,0.00024657,2]
[344568792,1733554239786,-249.80811979,0.00024657,2]
[344568793,1733554239797,-500.0,0.00024657,2]
[344568794,1733554239809,-500.0,0.00024657,2]
[344568795,1733554239822,-500.0,0.00024657,2]
[344568796,1733554239833,-505.07663927,0.00024657,2]
[344568797,1733554239844,-500.0,0.00024657,2]
[344568798,1733554239856,-500.0,0.00024657,2]
[344568799,1733554239867,-506.88346531,0.00024657,2]
[344568800,1733554239879,-500.0,0.00024657,2]
[344568801,1733554239891,-506.26443973,0.00024657,2]
[344568802,1733554239902,-504.57031344,0.00024657,2]
[344568803,1733554239915,-629.53489115,0.00024657,2]
[344568804,1733554239926,-507.69515066,0.00024657,2]
[344568805,1733554239940,-236.60971961,0.00024657,2]
[344568806,1733554239951,-579.50867061,0.00024657,2]
[344568807,1733554239963,-509.94017346,0.00024657,2]
[344568808,1733554239974,-500.0,0.00024657,2]
[344568809,1733554239986,-503.61498482,0.00024657,2]
[344568810,1733554239998,-259.68358536,0.00024657,2]
[344568811,1733554240010,-500.0,0.00024657,2]
[344568812,1733554240021,-500.0,0.00024657,2]
[344568813,1733554240033,-500.0,0.00024657,2]
[344568814,1733554240044,-238.80359664,0.00024657,2]
[344568815,1733554240057,-500.0,0.00024657,2]
[344568816,1733554240069,-500.0,0.00024657,2]
[344568817,1733554240079,-502.86437481,0.00024657,2]
[344568818,1733554240091,-500.0,0.00024657,2]
[344568819,1733554240102,-500.0,0.00024657,2]
[344568820,1733554240113,-506.00043142,0.00024657,2]
[344568821,1733554240123,-500.0,0.00024657,2]
[344568822,1733554240133,-510.82330962,0.00024657,2]
[344568823,1733554240145,-500.0,0.00024657,2]
[344568824,1733554240157,-500.0,0.00024657,2]
[344568825,1733554240168,-389.19781478,0.00024657,2]
[344568826,1733554240180,-508.44341711,0.00024657,2]
[344568827,1733554240192,-500.0,0.00024657,2]
[344568828,1733554240204,-503.37413376,0.00024657,2]
[344568829,1733554240216,-505.33555101,0.00024657,2]
[344568830,1733554240227,-506.39278149,0.00024657,2]
[344568831,1733554240239,-500.0,0.00024657,2]
[344568832,1733554240250,-500.0,0.00024657,2]
[344568833,1733554240260,-501.49829986,0.00024657,2]
[344568834,1733554240272,-501.33068027,0.00024657,2]
[344568835,1733554240283,-207.30870606,0.00024657,2]
[344568836,1733554240295,-504.36260319,0.00024657,2]
[344568837,1733554240306,-509.24325506,0.00024657,2]
[344568839,1733554240317,-518.80764461,0.00024657,2]
[344568841,1733554240329,-500.0,0.00024657,2]
[344568843,1733554240342,-506.7104191,0.00024657,2]
[344568845,1733554240353,-502.52199625,0.00024657,2]
[344568847,1733554240370,-305.2755732,0.00024657,2]
[344568848,1733554240391,-502.3880038,0.00024657,2]
[344568849,1733554240402,-500.0,0.00024657,2]
[344568850,1733554240412,-505.04997446,0.00024657,2]
[344568851,1733554240422,-500.0,0.00024657,2]
[344568852,1733554240433,-408.8184907,0.00024657,2]
[344568853,1733554240444,-500.0,0.00024657,2]
[344568854,1733554240457,-500.0,0.00024657,2]
[344568855,1733554240473,-500.0,0.00024657,2]
[344568856,1733554240486,-201.62121574,0.00024657,2]
[344568857,1733554240506,-503.64447374,0.00024657,2]
[344568858,1733554240520,-500.0,0.00024657,2]
[344568859,1733554240530,-484.22483157,0.00024657,2]
[344568860,1733554240547,-500.0,0.00024657,2]
[344568861,1733554240562,-500.0,0.00024657,2]
[344568862,1733554240574,-500.0,0.00024657,2]
[344568863,1733554240587,-500.0,0.00024657,2]
[344568864,1733554240598,-500.0,0.00024657,2]
[344568865,1733554240612,-500.0,0.00024657,2]
[344568866,1733554240625,-500.0,0.00024657,2]
[344568867,1733554240639,-500.0,0.00024657,2]
[344568869,1733554240649,-500.0,0.00024657,2]
[344568871,1733554240660,-500.0,0.00024657,2]
[344568872,1733554240670,-500.0,0.00024657,2]
[344568873,1733554240681,-500.0,0.00024657,2]
[344568874,1733554240691,-724.19,0.00024657,2]
[344568875,1733554240701,-499.49,0.00024657,2]
[344568876,1733554240712,-500.0,0.00024657,2]
[344568877,1733554240722,-500.0,0.00024657,2]
[344568878,1733554240733,-500.0,0.00024657,2]
[344568879,1733554240745,-500.0,0.00024931,2]
[344568880,1733554240756,-619.82819764,0.00024931,2]
[344568881,1733554240767,-150.21278163,0.00024931,2]
[344568882,1733554240780,-500.0,0.00024931,2]
[344568883,1733554240792,-500.0,0.00024931,2]
[344568884,1733554240803,-500.0,0.00024931,2]
[344568885,1733554240817,-724.19,0.00024931,2]
[344568886,1733554240828,-500.0,0.00024931,2]
[344568887,1733554240841,-500.0,0.00024931,2]
[344568888,1733554240852,-161.27744966,0.00025083,2]
[344568889,1733554240864,-500.0,0.00025142,2]
[344568890,1733554240874,-500.0,0.00025142,2]
[344568891,1733554240886,-500.0,0.00025142,2]
[344568892,1733554240897,-508.96090823,0.00025142,2]
[344568893,1733554240908,-500.0,0.00025142,2]
[344568894,1733554240919,-441.97682931,0.00025142,2]
[344568895,1733554240930,-500.0,0.00025142,2]
[344568896,1733554240940,-500.0,0.00025204,2]
[344568897,1733554240951,-500.0,0.00025205,2]
[344568898,1733554240962,-500.0,0.00025205,2]
[344568899,1733554240972,-500.0,0.00025205,2]
[344568900,1733554240983,-500.0,0.00025205,2]
[344568901,1733554240995,-724.19,0.00025205,2]
[344568902,1733554241007,-500.0,0.00025205,2]
[344568903,1733554241018,-500.0,0.00025205,2]
[344568904,1733554241028,-427.36572789,0.00025356,2]
[344568905,1733554241039,-298.43227715,0.00025436,2]
[344568906,1733554241049,-500.0,0.00025479,2]
[344568907,1733554241060,-500.0,0.00025479,2]
[344568908,1733554241196,-500.0,0.00025479,2]
[344568909,1733554241206,-500.0,0.00025479,2]
[344568910,1733554241216,-724.19,0.00025479,2]
[344568911,1733554241225,-500.0,0.00025479,2]
[344568912,1733554241234,-603.64439708,0.00025479,2]
[344568913,1733554241243,-502.59639081,0.00025569,2]
[344568914,1733554241253,-1001.4324947,0.0002569,2]
[344568915,1733554241262,-1000.0,0.0002569,2]
[344568916,1733554241271,-1002.35900292,0.0002569,2]
[344568917,1733554241280,-503.03778087,0.0002569,2]
[344568918,1733554241290,-1008.93055888,0.0002569,2]
[344568919,1733554241299,-1000.0,0.00025752,2]
[344568920,1733554241309,-500.0,0.00025753,2]
[344568921,1733554241318,-500.0,0.00025753,2]
[344568922,1733554241327,-500.0,0.00025753,2]
[344568923,1733554241337,-500.0,0.00025753,2]
[344568924,1733554241346,-724.19,0.00025753,2]
[344568925,1733554241355,-500.0,0.00025753,2]
[344568926,1733554241366,-557.44213585,0.00025818,2]
[344568927,1733554241375,-500.0,0.00025881,2]
[344568928,1733554241384,-342.8157321,0.00026027,2]
[344568929,1733554241394,-500.0,0.00026027,2]
[344568930,1733554241403,-500.0,0.00026027,2]
[344568931,1733554241412,-500.0,0.00026027,2]
[344568932,1733554241421,-724.19,0.00026027,2]
[344568933,1733554241430,-500.0,0.00026027,2]
[344568934,1733554241439,-500.0,0.00026301,2]
[344568935,1733554241448,-500.0,0.00026301,2]
[344568936,1733554241457,-500.0,0.00026301,2]
[344568937,1733554241466,-724.19,0.00026301,2]
[344568938,1733554241475,-500.0,0.00026301,2]
[344568939,1733554241484,-309.919699,0.00026301,2]